bitfinex/quotes_ETHUSD_20250815
["timestamp","ask_amount","ask_price","bid_price","bid_amount"]
[1755273117789,4.212,4435.6,4435.5,2.25453725]
[1755273117972,0.1128,4435.7,4435.5,2.254505]
[1755273118171,0.1128,4435.7,4434.1,2.161]
[1755273118394,0.1128,4435.1,4434.7,1.7293]
[1755273118719,0.1128,4435.1,4435.0,2.25479143]
[1755273118880,4.213,4435.6,4434.7,1.7293]
[1755273119073,0.4426,4436.3,4434.7,1.7293]
[1755273119074,0.1128,4435.4,4434.7,1.7293]
[1755273119275,4.209,4436.0,4435.9,2.25429186]
[1755273119591,4.209,4436.0,4435.7,2.25440852]
[1755273119783,0.1128,4435.7,4435.1,0.1128]
[1755273119985,0.1128,4435.7,4435.6,2.25448642]
[1755273120385,0.1128,4435.7,4435.3,0.677449]
[1755273120611,0.4426,4435.6,4434.0,1.7293]
[1755273120918,0.1128,4435.0,4434.9,2.25484227]
[1755273121110,0.1128,4435.0,4434.3,0.1128]
[1755273121475,4.197,4434.9,4433.3,1.7293]
[1755273121720,0.1128,4434.3,4434.2,2.25519823]
[1755273121877,0.1128,4434.8,4434.2,0.1128]
[1755273122080,0.1128,4434.8,4434.7,2.25494396]
[1755273122612,2.25434132,4435.9,4434.9,2.25484227]
[1755273122613,0.1128,4435.0,4434.9,2.25484227]
[1755273122783,0.1128,4435.8,4435.1,0.1128]
[1755273123111,0.1128,4435.8,4435.7,2.2544356]
[1755273123320,0.1128,4435.8,4435.2,0.1128]
[1755273123480,0.1128,4435.8,4433.7,2.933107]
[1755273123481,0.1128,4435.8,4434.5,3.0]
[1755273123806,4.193,4436.0,4434.9,2.25484227]
[1755273124011,4.193,4436.0,4434.8,0.1128]
[1755273124012,4.188,4435.9,4435.6,2.25448642]
[1755273124215,4.3008,4435.9,4435.5,2.25453264]
[1755273124379,4.3008,4435.9,4435.1,0.1128]
[1755273124586,4.3008,4435.9,4435.8,2.25438477]
[1755273125098,0.1128,4435.9,4434.1,3.0]
[1755273125280,0.1128,4435.9,4435.1,0.1128]
[1755273125475,0.1128,4435.9,4435.6,2.25447936]
[1755273125680,0.1128,4435.9,4434.7,2.161]
[1755273125913,0.002,4436.2,4435.8,2.25438477]
[1755273126080,4.179,4436.1,4435.7,2.25442708]
[1755273126280,4.179,4436.1,4434.8,2.25484586]
[1755273126533,0.47193267,4436.1,4435.0,2.25479143]
[1755273126683,1e-08,4436.2,4436.1,2.25423232]
[1755273126883,0.58991584,4437.8,4436.3,3.0]
[1755273126884,4.183,4437.8,4436.3,3.0]
[1755273127083,0.1128,4437.6,4437.4,2.25355449]
[1755273127277,0.1128,4437.6,4437.5,2.25352112]
[1755273127476,0.1128,4437.6,4437.0,2.2537665]
[1755273127793,0.1128,4437.1,4436.4,0.1128]
[1755273128109,0.1128,4436.8,4436.7,2.25392746]
[1755273128315,4.176,4437.5,4435.8,2.0399]
[1755273128610,0.1128,4436.9,4436.7,2.25392047]
[1755273128918,0.1128,4436.9,4436.1,0.1128]
[1755273128919,0.1128,4436.9,4436.8,2.25387666]
[1755273129074,0.1128,4436.9,4435.8,5.0399]
[1755273129075,0.1128,4437.3,4436.7,0.1128]
[1755273129274,0.4403,4437.4,4435.3,3.0]
[1755273129476,4.2938,4437.3,4437.2,2.25367348]
[1755273129711,4.2938,4437.3,4436.7,0.1128]
[1755273129880,0.58991584,4438.3,4437.6,2.25343096]
[1755273130080,0.58991584,4438.5,4438.2,2.25316569]
[1755273130276,0.58991584,4438.5,4437.1,0.4686]
[1755273130277,0.1128,4438.3,4437.7,0.1128]
[1755273130680,4.182,4438.4,4437.0,0.1128]
[1755273130880,5.416,4438.8,4437.0,0.4686]
[1755273130881,0.1128,4438.1,4437.0,0.4686]
[1755273131077,4.18,4438.0,4437.7,2.25341956]
[1755273131311,4.18,4438.0,4436.9,3.0]
[1755273131511,0.4403,4438.6,4436.5,2.0399]
[1755273131710,4.178,4438.5,4437.3,2.25361698]
[1755273131914,0.4403,4438.6,4436.5,2.0399]
[1755273132114,3.0,4438.3,4435.8,0.4686]
[1755273132302,4.76491584,4438.2,4435.9,2.25433395]
[1755273132502,0.58991584,4438.1,4435.9,5.25433395]
[1755273132701,3.4403,4438.4,4437.7,2.25341011]
[1755273132918,4.175,4438.3,4436.0,2.0399]
[1755273133116,0.002,4437.3,4436.0,2.0399]
[1755273133283,0.002,4437.3,4437.2,2.25367348]
[1755273133480,4.175,4437.3,4437.2,2.25367348]
[1755273133693,0.002,4437.3,4437.2,2.25367348]
[1755273135397,0.4423,4437.3,4435.7,2.25442697]
[1755273135693,1.03021584,4437.7,4435.4,5.25455414]
[1755273135894,0.58991584,4438.7,4437.4,2.25352737]
[1755273136111,0.58991584,4438.9,4437.5,3.0]
[1755273136308,4.178,4439.0,4437.3,3.0]
[1755273136508,4.178,4439.0,4437.5,3.0]
[1755273136720,0.4403,4439.1,4438.9,2.25279324]
[1755273137021,4.174,4439.0,4438.9,2.25281038]
[1755273137323,4.172,4439.3,4438.2,2.25316569]
[1755273137525,4.172,4439.3,4439.2,2.25265813]
[1755273137725,4.169,4439.3,4438.1,2.0399]
[1755273137887,4.169,4439.3,4438.1,1.5713]
[1755273138224,0.4403,4439.2,4438.0,2.2532251]
[1755273138424,0.4403,4439.2,4437.4,0.4686]
[1755273138425,2.1669,4439.1,4437.2,0.676947]
[1755273138622,7.168,4439.0,4437.2,0.676947]
[1755273138822,0.47276538,4438.9,4437.1,1.5713]
[1755273139129,2.25291585,4438.7,4437.3,2.25357901]
[1755273139425,0.4403,4438.7,4436.7,2.0399]
[1755273139799,0.55,4438.4,4435.8,1.5721]
[1755273140112,0.58991584,4437.6,4435.8,3.82647849]
[1755273140427,0.58991584,4437.6,4435.8,1.5721]
[1755273140428,3.4403,4437.5,4435.8,1.5721]
[1755273140586,4.161,4437.4,4435.8,0.0008]
[1755273140790,3.0,4437.2,4435.8,0.0008]
[1755273141011,0.58991584,4437.2,4435.8,0.0008]
[1755273141225,0.1128,4435.9,4435.8,0.0008]
[1755273141428,4.2728,4435.9,4435.8,0.0008]
[1755273141931,8.58433395,4435.9,4435.8,0.0008]
[1755273142092,4.89680257,4435.9,4435.8,0.0008]
[1755273142434,2.69463395,4435.9,4435.8,0.0008]
[1755273142595,4.2688,4435.9,4435.8,0.0008]
[1755273142796,4.156,4436.0,4435.8,0.0008]
[1755273143029,4.2688,4435.9,4435.8,0.0008]
[1755273143326,0.1128,4435.9,4435.8,0.0008]
[1755273143501,0.47204904,4437.3,4435.8,0.0008]
[1755273143705,0.4403,4437.9,4435.8,2.0407]
[1755273143916,4.156,4437.5,4435.9,2.0399]
[1755273144229,4.156,4437.7,4436.2,2.2541815]
[1755273144451,0.47216156,4438.7,4437.3,2.25362269]
[1755273144593,0.4403,4438.9,4437.4,0.1128]
[1755273144594,0.1128,4438.0,4437.4,0.1128]
[1755273144792,0.1128,4438.0,4436.5,2.0399]
[1755273144793,4.156,4438.0,4436.5,2.0399]
[1755273145014,0.1128,4437.1,4437.0,2.25377507]
[1755273145294,4.156,4437.1,4435.9,0.4686]
[1755273145625,0.1128,4436.5,4436.0,2.25428313]
[1755273145958,0.1128,4436.1,4435.8,0.0008]
[1755273146297,4.156,4436.0,4435.8,0.0008]
[1755273146494,4.5963,4436.0,4435.8,0.0008]
[1755273146732,0.1128,4436.1,4435.8,0.0008]
[1755273147047,0.4105,4436.0,4435.8,0.0008]
[1755273147210,4.5665,4436.0,4435.8,0.0008]
[1755273147419,4.156,4436.4,4435.8,0.0008]
[1755273147831,3.4105,4437.5,4435.8,0.0008]
[1755273147997,4.156,4437.0,4436.7,2.25392746]
[1755273148205,0.58991584,4438.3,4436.1,1.5713]
[1755273148400,4.156,4438.0,4437.3,2.25360289]
[1755273148600,4.156,4438.0,4436.4,2.25407988]
[1755273148601,4.156,4438.0,4437.1,2.25367687]
[1755273148902,4.156,4438.0,4435.8,0.0008]
[1755273148903,5.0274,4437.9,4435.8,0.0008]
[1755273149107,1.1396865,4437.8,4435.8,0.0008]
[1755273149397,0.55,4436.5,4435.8,0.0008]
[1755273149618,5.80433395,4435.9,4435.8,0.0018]
[1755273149934,9.96033395,4435.9,4435.8,0.0018]
[1755273150244,5.66483395,4435.9,4435.8,0.0018]
[1755273150600,4.156,4435.9,4435.8,0.0018]
[1755273151028,5.414,4436.4,4435.8,0.0018]
[1755273151212,4.156,4435.9,4435.8,2.25618477]
[1755273151415,1.6169,4437.7,4435.8,2.0417]
[1755273151416,2.0274,4437.7,4435.8,2.0417]
[1755273151623,5.415,4438.1,4435.9,0.02254333]
[1755273151821,4.156,4438.0,4436.7,2.25391389]
[1755273152022,3.4403,4437.9,4435.8,0.0018]
[1755273152234,3.4403,4437.9,4436.2,2.2541751]
[1755273152235,2.25376102,4437.1,4436.2,2.2541751]
[1755273152546,0.47188818,4437.8,4436.2,0.0008]
[1755273152737,4.157,4437.7,4436.2,0.0008]
[1755273153241,0.91218818,4437.9,4436.2,0.0008]
[1755273153451,4.157,4437.8,4436.9,2.25380282]
[1755273153747,4.157,4437.7,4437.4,2.25357165]
[1755273153947,4.157,4437.7,4437.5,2.25348929]
[1755273154164,4.157,4437.7,4437.6,2.25347034]
[1755273154613,4.156,4437.7,4436.8,1.5713]
[1755273154964,4.156,4437.7,4436.5,2.25401588]
[1755273155112,4.156,4437.7,4436.2,2.2549746]
[1755273155449,3.4403,4437.6,4436.4,2.25406873]
[1755273155653,5.0572,4437.6,4436.2,0.0008]
[1755273155865,0.55,4437.3,4436.2,0.0008]
[1755273156018,3.0,4437.2,4436.2,0.0008]
[1755273156349,7.156,4437.2,4436.2,2.25493396]
[1755273156547,2.25382896,4436.9,4436.2,0.0008]
[1755273156714,7.156,4437.2,4436.2,0.0008]
[1755273157050,0.55,4437.4,4436.2,0.0008]
[1755273157222,0.4344,4437.0,4436.2,0.0008]
[1755273157425,0.1128,4436.3,4436.2,0.0008]
[1755273157628,4.2688,4436.3,4436.2,0.0008]
[1755273158047,6.95733069,4436.3,4436.2,0.0008]
[1755273158419,4.7032,4436.3,4436.2,0.0008]
[1755273158744,4.2688,4436.3,4436.2,0.0008]
[1755273159537,4.2688,4436.3,4436.2,2.2549815]
[1755273160013,0.1128,4436.3,4436.2,0.0008]
[1755273160213,4.2688,4436.3,4436.2,0.0008]
[1755273160413,6.95733069,4436.3,4436.2,0.0008]
[1755273160651,0.55,4436.1,4435.0,0.001]
[1755273160861,5.80474059,4435.1,4435.0,0.001]
[1755273161163,5.97798664,4435.1,4435.0,0.001]
[1755273161329,10.13398664,4435.1,4435.0,0.001]
[1755273161526,10.01838664,4435.1,4435.0,0.001]
[1755273162130,7.53178664,4435.1,4435.0,0.001]
[1755273162329,11.68678664,4435.1,4435.0,0.001]
[1755273162558,0.55,4435.8,4435.0,0.001]
[1755273162871,3.0,4435.6,4435.0,0.001]
[1755273163151,2.25458808,4435.4,4435.0,0.001]
[1755273163362,3.0,4435.4,4435.0,0.001]
[1755273163515,2.1038,4435.3,4435.0,0.001]
[1755273163716,3.55,4435.2,4435.0,0.001]
[1755273163922,3.55,4435.1,4435.0,0.001]
[1755273164128,9.8098,4435.1,4435.0,0.001]
[1755273164334,12.06454059,4435.1,4435.0,0.001]
[1755273164744,7.90854059,4435.1,4435.0,0.001]
[1755273165029,12.06454059,4435.1,4435.0,0.001]
[1755273165643,6.23914059,4435.1,4435.0,0.001]
[1755273165850,10.39414059,4435.1,4435.0,0.001]
[1755273166028,12.05624059,4435.1,4435.0,0.001]
[1755273166432,6.23914059,4435.1,4435.0,0.001]
[1755273166628,9.84414059,4435.1,4435.0,0.001]
[1755273166834,10.39414059,4435.1,4435.0,0.001]
[1755273167075,12.05624059,4435.1,4435.0,0.001]
[1755273167448,10.39514059,4435.1,4435.0,0.001]
[1755273167753,6.23914059,4435.1,4435.0,0.001]
[1755273167960,10.39514059,4435.1,4435.0,0.001]
[1755273168362,12.05724059,4435.1,4435.0,0.001]
[1755273168532,7.90124059,4435.1,4435.0,0.001]
[1755273168934,42.52860549,4435.1,4435.0,0.001]
[1755273169142,3.55,4435.0,4434.1,0.001]
[1755273169344,3.55,4434.5,4432.8,0.001]
[1755273169561,0.55,4434.2,4432.8,0.001]
[1755273169754,2.25569976,4433.3,4432.8,0.001]
[1755273169961,4.155,4433.2,4433.1,2.25575782]
[1755273170168,4.155,4433.2,4433.1,4.37595782]
[1755273170574,5.417,4433.4,4433.1,2.1202]
[1755273170740,0.1128,4433.2,4433.1,4.37595782]
[1755273171070,0.1128,4433.2,4433.1,2.1202]
[1755273171371,0.1128,4433.2,4432.8,0.001]
[1755273171573,5.417,4433.4,4433.3,2.25565605]
[1755273171742,9.572,4433.4,4433.3,4.37585605]
[1755273171943,9.6848,4433.4,4433.3,4.37585605]
[1755273172162,0.1128,4433.6,4433.4,2.25560517]
[1755273172472,4.155,4433.5,4433.4,2.25560517]
[1755273172773,4.155,4434.0,4433.3,2.25565605]
[1755273172963,4.155,4433.9,4433.8,2.25540168]
[1755273173161,4.155,4433.9,4433.1,2.2557326]
[1755273173473,3.0,4433.8,4433.3,2.25560844]
[1755273173773,4.155,4433.7,4433.6,2.25550342]
[1755273173968,0.4344,4435.4,4433.6,2.1202]
[1755273173969,0.55,4435.3,4433.6,2.1202]
[1755273174272,4.155,4435.2,4433.7,2.25545255]
[1755273174473,3.0,4435.0,4434.5,2.25504555]
[1755273174663,3.0,4435.0,4432.9,2.25585959]
[1755273174664,3.0,4435.7,4434.8,2.2548564]
[1755273174861,2.25458899,4435.4,4434.3,2.2551236]
[1755273175169,3.9844,4435.5,4433.5,0.4676]
[1755273175390,4.45649835,4435.5,4434.1,2.25523096]
[1755273175675,0.55,4435.7,4434.7,2.25490134]
[1755273175845,3.0,4435.5,4434.8,2.25489205]
[1755273176045,3.0,4435.3,4434.7,2.25491042]
[1755273176374,4.154,4435.2,4434.7,2.2549125]
[1755273176570,4.154,4435.1,4434.1,0.4676]
[1755273176772,3.91519042,4436.4,4434.1,0.4676]
[1755273176773,5.417,4436.0,4434.2,1.6526]
[1755273177076,4.154,4435.9,4434.7,2.25493523]
[1755273177264,4.154,4435.9,4435.4,2.25454745]
[1755273177462,4.154,4435.9,4435.3,2.25463277]
[1755273177774,4.1532,4435.9,4434.3,2.1202]
[1755273178071,3.0,4435.8,4434.7,2.25493981]
[1755273178389,5.25438875,4435.8,4435.0,2.25477532]
[1755273178539,3.0,4435.6,4434.3,1.6526]
[1755273179061,3.0,4435.9,4434.5,2.25504566]
[1755273179376,4.153,4435.8,4435.5,2.25449295]
[1755273179575,4.153,4435.8,4434.0,2.25529995]
[1755273179576,0.10881928,4436.9,4433.2,5.25567871]
[1755273179781,3.504,4436.8,4435.6,2.1202]
[1755273179970,3.504,4436.7,4435.7,2.25438963]
[1755273180173,3.0,4436.6,4435.6,1.6526]
[1755273180355,3.0,4436.6,4435.2,2.25464127]
[1755273180543,0.4344,4436.5,4434.2,2.1202]
[1755273180744,0.4344,4436.5,4433.2,2.25568016]
[1755273180745,2.80423232,4436.1,4433.7,2.25545255]
[1755273180986,2.25506218,4434.5,4433.7,2.25544768]
[1755273181185,4.153,4434.4,4434.2,2.25515281]
[1755273181478,4.153,4434.4,4433.6,0.4676]
[1755273181479,4.153,4434.3,4433.5,2.25654607]
[1755273181679,5.416,4434.9,4433.5,0.001]
[1755273181885,4.153,4434.8,4433.6,2.1202]
[1755273182068,4.153,4434.8,4434.1,2.25524756]
[1755273182268,4.152,4434.7,4434.1,2.1202]
[1755273182481,5.416,4434.9,4434.3,2.25510199]
[1755273182698,5.416,4434.9,4434.1,4.37624793]
[1755273182699,0.1128,4434.2,4434.1,2.121]
[1755273182858,6.51919823,4434.2,4434.1,0.0008]
[1755273183262,6.95359823,4434.2,4434.1,0.0008]
[1755273183465,9.95359823,4434.2,4434.1,0.0008]
[1755273183707,5.36719823,4434.2,4434.1,0.0008]
[1755273183848,4.2648,4434.2,4434.1,0.0008]
[1755273184251,0.1128,4434.2,4434.1,0.0008]
[1755273184445,4.151,4434.9,4434.7,2.25492361]
[1755273184674,4.151,4434.9,4434.8,4.37509311]
[1755273184891,4.151,4434.9,4434.2,2.1202]
[1755273185054,0.1128,4434.6,4434.1,0.0008]
[1755273185252,3.0,4434.4,4434.1,0.0008]
[1755273185474,0.1128,4434.6,4434.1,0.0008]
[1755273185672,0.77825289,4435.7,4434.8,2.25485586]
[1755273185844,4.2638,4436.5,4436.2,2.2541815]
[1755273186450,4.2638,4436.5,4436.2,3.9402815]
[1755273186851,0.1148,4436.3,4436.2,3.9402815]
[1755273187055,0.1148,4436.3,4436.2,2.2541815]
[1755273187277,4.2658,4436.3,4435.1,0.4528]
[1755273187477,4.2658,4436.3,4436.0,2.25426355]
[1755273187752,0.002,4436.3,4435.2,5.25468975]
[1755273187958,0.1128,4436.0,4435.9,2.25430928]
[1755273188157,0.1128,4436.0,4435.9,4.39320928]
[1755273188965,0.1128,4436.0,4435.9,2.25430928]
[1755273190207,4.2628,4436.0,4435.9,3.94040928]
[1755273190428,4.2628,4436.0,4435.9,2.25430928]
[1755273190573,0.1128,4436.0,4435.9,4.39320928]
[1755273190768,0.002,4436.3,4436.2,2.2541815]
[1755273190973,4.152,4436.3,4436.2,2.2541815]
[1755273191380,0.002,4436.3,4436.2,3.9402815]
[1755273191707,4.151,4436.3,4436.2,3.9402815]
[1755273191904,0.1148,4436.3,4435.4,0.1128]
[1755273192111,3.1128,4436.1,4434.4,1.6861]
[1755273192407,3.1128,4436.1,4434.2,0.1128]
[1755273192408,0.1128,4434.9,4434.2,2.25519823]
[1755273192607,4.149,4434.8,4434.1,0.4536]
[1755273192807,4.149,4434.8,4434.7,2.25494396]
[1755273193313,4.2618,4434.8,4434.7,2.25494396]
[1755273193516,4.149,4434.8,4434.1,0.0008]
[1755273193719,9.565,4434.8,4434.1,0.0008]
[1755273194023,5.416,4434.8,4434.1,0.0008]
[1755273194222,4.149,4434.7,4434.1,0.0008]
[1755273194419,4.149,4434.6,4434.5,2.25501841]
[1755273194717,4.149,4434.6,4434.1,0.0008]
[1755273194917,5.416,4434.8,4434.1,0.0008]
[1755273195124,4.148,4434.5,4434.3,2.25510418]
[1755273195276,4.148,4434.5,4434.4,2.25509651]
[1755273195477,5.416,4434.8,4434.4,2.1389]
[1755273195823,4.148,4434.5,4434.2,2.25517715]
[1755273196125,4.148,4434.5,4434.4,2.25509651]
[1755273196620,4.148,4434.5,4434.2,2.25518944]
[1755273196822,5.416,4434.8,4434.1,0.0008]
[1755273197038,5.416,4434.8,4434.1,2.1397]
[1755273197244,4.148,4434.7,4434.2,2.2551488]
[1755273197399,3.0,4434.6,4434.1,0.0008]
[1755273197602,2.25519823,4434.2,4434.1,0.0008]
[1755273198132,6.40319823,4434.2,4434.1,0.0008]
[1755273198335,6.85609823,4434.2,4434.1,0.0008]
[1755273198498,8.46379823,4434.2,4434.1,0.0008]
[1755273198704,11.93855203,4434.2,4434.1,0.0008]
[1755273199091,12.04721505,4434.2,4434.1,0.0008]
[1755273199493,2.25575782,4433.1,4433.0,0.001]
[1755273199695,9.40275782,4433.1,4433.0,0.001]
[1755273199990,6.40375782,4433.1,4433.0,0.001]
[1755273200187,4.148,4433.1,4433.0,0.001]
[1755273200389,6.85665782,4433.1,4433.0,0.001]
[1755273200831,11.46435782,4433.1,4433.0,0.001]
[1755273201221,7.95761673,4433.1,4433.0,0.001]
[1755273201419,11.62956097,4433.1,4433.0,0.001]
[1755273201618,5.42196097,4433.1,4433.0,0.001]
[1755273201818,9.56896097,4433.1,4433.0,0.001]
[1755273201992,3.0,4433.0,4432.8,1e-08]
[1755273202194,5.25585959,4432.9,4432.8,1e-08]
[1755273202394,5.73051196,4432.9,4432.8,1e-08]
[1755273202704,7.79111196,4432.9,4432.8,1e-08]
[1755273202894,8.58228548,4432.9,4432.8,1e-08]
[1755273203230,37.79111196,4432.9,4432.8,1e-08]
[1755273203527,37.79111196,4432.9,4432.5,1e-08]
[1755273203528,2.25601227,4432.6,4432.5,1e-08]
[1755273203832,2.36901587,4432.2,4432.1,1e-08]
[1755273204016,9.51601587,4432.2,4432.1,1e-08]
[1755273204225,7.90426824,4432.2,4432.1,1e-08]
[1755273204423,12.05126824,4432.2,4432.1,1e-08]
[1755273204936,2.25639459,4431.9,4431.6,1e-08]
[1755273205144,5.25647042,4431.7,4431.6,1e-08]
[1755273205453,5.73112279,4431.7,4431.6,1e-08]
[1755273205736,7.79172279,4431.7,4431.6,1e-08]
[1755273205938,7.33102279,4431.7,4431.6,1e-08]
[1755273206237,2.25647042,4431.7,4431.6,1e-08]
[1755273206536,9.85637042,4431.7,4431.6,1e-08]
[1755273206742,6.85637042,4431.7,4431.6,1e-08]
[1755273206928,8.46407042,4431.7,4431.6,1e-08]
[1755273207131,5.25647042,4431.7,4431.6,1e-08]
[1755273207305,9.40347042,4431.7,4431.6,1e-08]
[1755273207837,4.147,4431.7,4431.6,1e-08]
[1755273208040,4.147,4431.7,4431.6,4.39542103]
[1755273208341,4.147,4431.7,4431.6,2.13890001]
[1755273208513,4.147,4431.7,4431.6,4.39542135]
[1755273209030,4.147,4431.7,4431.6,2.13890001]
[1755273209227,4.147,4431.7,4431.6,4.39542135]
[1755273209940,3.0,4432.9,4431.6,2.13890001]
[1755273210129,0.58334802,4433.4,4431.6,2.13890001]
[1755273210328,4.146,4433.0,4432.0,2.25627749]
[1755273210651,4.146,4433.0,4431.6,2.13890001]
[1755273210652,5.42,4433.2,4431.6,1e-08]
[1755273210857,2.25581671,4433.0,4432.2,2.25621587]
[1755273211344,4.31189869,4433.1,4432.1,2.1389]
[1755273211544,5.42,4433.2,4432.2,1.6861]
[1755273211545,4.146,4433.0,4432.2,1.6861]
[1755273211732,5.42,4433.2,4433.1,2.25575782]
[1755273211934,5.42,4433.2,4433.1,2.1389]
[1755273212146,4.146,4433.2,4433.1,4.39465782]
[1755273212349,5.42,4434.8,4433.2,2.25570693]
[1755273212552,7.146,4434.7,4434.1,2.25524024]
[1755273212711,7.146,4434.7,4433.3,2.25565605]
[1755273212712,7.146,4434.7,4434.0,2.25529613]
[1755273212914,2.25516842,4434.3,4433.4,2.25558935]
[1755273213113,2.25509719,4434.4,4433.5,2.25555179]
[1755273213340,4.145,4434.3,4433.6,2.1389]
[1755273213526,4.145,4434.2,4433.6,4.39439544]
[1755273213736,4.145,4434.2,4433.6,4.39439878]
[1755273213937,4.145,4434.1,4433.6,2.1389]
[1755273214138,4.145,4434.0,4433.7,2.25544578]
[1755273214458,5.42,4434.8,4433.8,2.1389]
[1755273214459,4.145,4433.9,4433.8,2.1389]
[1755273214638,4.145,4433.9,4433.8,1.6861]
[1755273214831,4.145,4433.9,4432.2,0.001]
[1755273214832,4.145,4433.9,4433.1,0.4528]
[1755273215342,4.145,4433.9,4433.1,2.70851552]
[1755273215538,0.1128,4433.2,4433.1,2.70851552]
[1755273215741,0.1128,4433.2,4433.1,4.39461552]
[1755273215940,4.144,4433.2,4433.1,4.39465782]
[1755273216152,0.1128,4433.4,4433.1,4.39465782]
[1755273216153,0.1128,4433.4,4433.3,2.25565605]
[1755273216331,4.2568,4433.4,4433.3,2.25565605]
[1755273216529,0.002,4435.4,4433.3,2.0874]
[1755273216860,0.002,4435.4,4434.0,0.55]
[1755273217061,0.002,4435.4,4435.3,2.25463891]
[1755273217516,0.002,4435.4,4435.3,4.34203891]
[1755273217843,0.002,4435.4,4435.3,2.0874]
[1755273218042,0.002,4435.4,4433.2,2.25568772]
[1755273218043,0.002,4435.4,4434.6,2.2002]
[1755273218253,0.1128,4434.7,4434.6,2.0874]
[1755273218557,4.2558,4434.7,4434.6,2.0874]
[1755273218951,4.2558,4434.7,4434.6,1.6287]
[1755273219159,4.2558,4434.7,4434.6,2.0874]
[1755273219340,4.143,4434.9,4434.6,2.0874]
[1755273219542,4.143,4434.9,4434.5,2.25500135]
[1755273219742,0.1128,4435.0,4434.9,2.25484227]
[1755273220050,0.112,4435.0,4434.7,2.0874]
[1755273220254,0.002,4435.4,4435.1,2.25471272]
[1755273220430,0.002,4435.4,4435.3,2.25463891]
[1755273220950,0.002,4435.4,4435.3,4.34203891]
[1755273221315,0.002,4435.4,4435.3,7.34203891]
[1755273221726,0.002,4436.3,4436.2,2.2541815]
[1755273222228,1e-08,4436.3,4436.2,7.8915815]
[1755273222847,0.002,4437.2,4436.2,7.8915815]
[1755273222848,0.002,4437.2,4436.6,0.55]
[1755273223056,0.002,4437.2,4437.1,2.25372427]
[1755273223436,0.002,4437.2,4437.1,4.34112427]
[1755273224160,0.002,4437.2,4437.1,7.34112427]
[1755273224562,1e-08,4437.2,4437.1,7.89112427]
[1755273225937,1e-08,4437.2,4437.1,7.34112427]
[1755273226124,1e-08,4437.2,4437.1,5.25372427]
[1755273226325,1e-08,4437.2,4437.1,2.25372427]
[1755273226569,1e-08,4437.2,4437.1,4.34112427]
[1755273226957,1e-08,4437.2,4436.4,2.0874]
[1755273227148,1e-08,4437.2,4436.5,2.25402907]
[1755273227356,1e-08,4437.2,4436.9,2.25378364]
[1755273227681,1e-08,4437.2,4436.0,0.4587]
[1755273227898,1e-08,4437.2,4435.3,0.4587]
[1755273228033,1e-08,4437.2,4436.1,2.25422459]
[1755273228236,4.5791,4437.1,4435.3,2.0874]
[1755273228499,4.5791,4437.1,4435.2,2.25468575]
[1755273228500,1.6442,4437.0,4435.2,2.25468575]
[1755273228642,0.4431,4436.9,4434.7,0.4587]
[1755273228845,0.4431,4436.9,4435.4,2.25458617]
[1755273229156,2.25417206,4436.3,4435.5,2.25452376]
[1755273229536,0.4431,4436.9,4434.9,2.25484227]
[1755273229741,1e-08,4437.2,4435.3,2.0874]
[1755273229742,2.25392746,4436.7,4435.3,2.0874]
[1755273229969,2.25372427,4437.1,4436.2,2.25416807]
[1755273230178,1e-08,4437.2,4436.1,0.4587]
[1755273230464,1e-08,4437.2,4437.1,2.25372427]
[1755273230876,1e-08,4437.2,4437.1,7.34112427]
[1755273231371,1e-08,4437.2,4437.1,7.89112427]
[1755273232371,1e-08,4437.2,4437.1,7.89192427]
[1755273232537,0.78956475,4441.6,4437.1,7.89192427]
[1755273232538,0.677055,4441.5,4441.0,2.2517451]
[1755273232736,0.01535541,4442.0,4441.0,2.2517451]
[1755273232950,4.133,4442.3,4441.0,2.0874]
[1755273233161,4.133,4442.3,4441.0,1.6287]
[1755273233369,4.133,4442.3,4440.4,1.6287]
[1755273233570,4.133,4442.3,4441.9,2.25123947]
[1755273233771,0.4431,4442.7,4442.0,2.25123818]
[1755273233978,4.133,4442.0,4441.8,2.2513289]
[1755273234177,4.5761,4442.0,4440.5,3.0]
[1755273234473,4.132,4441.9,4440.4,1.6287]
[1755273234682,4.132,4441.9,4439.8,1.6287]
[1755273234982,2.0873,4441.8,4440.5,2.25199194]
[1755273235179,2.0873,4441.8,4439.9,2.25230297]
[1755273235494,4.132,4441.7,4440.6,2.25194403]
[1755273235671,4.132,4441.7,4439.9,3.0]
[1755273235672,4.132,4441.7,4440.5,2.25194807]
[1755273235876,2.25169593,4441.1,4440.1,2.25216528]
[1755273236036,0.4431,4441.0,4439.1,2.0874]
[1755273236239,4.13,4440.9,4439.2,2.25262481]
[1755273236441,4.13,4440.9,4440.1,2.25220046]
[1755273236680,3.0,4441.8,4440.2,2.25215037]
[1755273236974,4.13,4441.7,4441.1,2.25169029]
[1755273237173,4.13,4442.0,4440.7,5.25189722]
[1755273237371,4.13,4442.0,4441.7,2.25137567]
[1755273237569,4.13,4442.0,4440.8,2.25184651]
[1755273237570,4.13,4442.0,4441.8,2.25133486]
[1755273237875,0.002,4442.5,4440.9,2.2517958]
[1755273238042,0.002,4442.5,4440.7,2.25189722]
[1755273238244,4.13,4442.0,4441.7,2.25135861]
[1755273238444,4.13,4441.9,4441.8,2.25133954]
[1755273238755,4.13,4441.9,4440.9,2.25175168]
[1755273238953,4.13,4441.9,4440.7,2.25189722]
[1755273239270,4.13,4441.9,4441.6,2.2513983]